bitfinex/quotes_ETHUSD_20260305
["timestamp","ask_amount","ask_price","bid_price","bid_amount"]
[1772702130019,2.16913128,2128.0,2127.6,0.001]
[1772702130639,2.16913128,2128.4,2127.6,0.001]
[1772702130944,1.17453605,2128.5,2127.6,0.001]
[1772702131146,2.16913128,2128.5,2127.6,1.1760329]
[1772702133139,2.16913128,2128.5,2127.8,0.001]
[1772702133140,2.16913128,2128.3,2127.8,0.001]
[1772702133745,2.16913128,2128.3,2127.6,0.001]
[1772702133926,0.40215928,2128.2,2127.6,0.001]
[1772702134129,2.16913128,2128.1,2127.6,0.001]
[1772702134644,2.16913128,2128.1,2127.4,0.001]
[1772702134843,2.16913128,2127.9,2127.4,0.001]
[1772702135156,3.34405373,2127.8,2127.4,0.001]
[1772702135329,3.34405373,2127.8,2127.1,0.001]
[1772702135330,2.16913128,2127.7,2127.1,0.001]
[1772702137215,2.16913128,2127.5,2127.1,0.001]
[1772702138716,2.16913128,2127.5,2126.6,1.17654915]
[1772702139356,1.17514336,2127.4,2126.6,0.001]
[1772702139643,2.16913128,2127.3,2126.6,0.001]
[1772702140653,1.17514336,2127.4,2126.6,2.20840232]
[1772702141147,3.34422586,2127.5,2126.6,2.20840232]
[1772702141652,2.16913128,2127.4,2126.7,1.17553016]
[1772702142746,6.35313267,2127.6,2126.7,1.17553016]
[1772702142747,2.82806619,2127.6,2126.7,1.17553016]
[1772702142934,2.16913128,2127.5,2126.7,1.17553016]
[1772702143720,2.16913128,2127.5,2126.6,6.91060542]
[1772702143721,3.34422801,2127.5,2126.6,6.91060542]
[1772702143923,4.69993476,2127.7,2126.7,2.20740232]
[1772702144556,2.16913128,2127.6,2126.6,4.7032031]
[1772702145047,2.16913128,2127.6,2126.9,0.001]
[1772702145554,2.16913128,2127.6,2126.6,0.001]
[1772702145724,2.16913128,2127.4,2126.6,0.001]
[1772702147728,1.1751986,2127.3,2126.6,0.001]
[1772702148752,3.35669801,2127.3,2126.6,0.001]
[1772702148924,2.18149941,2127.2,2126.6,0.001]
[1772702149783,2.18149941,2127.0,2126.6,0.001]
[1772702150558,4.70123642,2127.2,2126.6,0.001]
[1772702150559,1.652,2127.3,2126.6,2.13126403]
[1772702150862,2.82721722,2127.3,2126.6,2.13126403]
[1772702151369,0.002,2127.7,2126.6,2.13126403]
[1772702151370,1.17701835,2127.7,2126.6,2.13126403]
[1772702152132,2.18149941,2127.6,2126.7,3.30579419]
[1772702152763,0.002,2127.7,2126.8,2.13026403]
[1772702154175,0.002,2127.7,2126.9,3.30568365]
[1772702155981,0.56319772,2127.6,2126.9,3.30568365]
[1772702156354,0.56319772,2127.6,2127.0,2.13026403]
[1772702157159,0.002,2127.7,2127.0,2.13026403]
[1772702158070,0.002,2127.5,2127.0,2.13026403]
[1772702158281,0.002,2127.5,2127.1,1.1753091]
[1772702158650,0.002,2127.5,2127.0,1.17532897]
[1772702159047,0.002,2127.5,2126.9,1.17537217]
[1772702159585,2.18349941,2127.5,2126.8,1.17644818]
[1772702160249,2.18349941,2127.5,2126.8,0.001]
[1772702160250,3.35664277,2127.4,2126.8,0.001]
[1772702160451,2.18149941,2127.3,2126.8,0.001]
[1772702160875,1.17514336,2127.4,2126.8,0.001]
[1772702161182,3.35664277,2127.4,2126.8,0.001]
[1772702161346,2.5847148,2127.3,2126.6,0.001]
[1772702161546,2.18149941,2127.1,2126.6,0.001]
[1772702162278,1.17536436,2127.0,2126.6,0.001]
[1772702162482,3.35686377,2127.0,2126.6,0.001]
[1772702163073,0.40336144,2126.9,2126.6,0.001]
[1772702163277,3.35686377,2127.0,2126.6,0.001]
[1772702163460,0.40349428,2126.9,2126.6,0.001]
[1772702163662,3.35686377,2127.0,2126.6,0.001]
[1772702163859,0.40349428,2126.9,2126.6,0.001]
[1772702164071,3.35686377,2127.0,2126.6,0.001]
[1772702164275,0.40349428,2126.9,2126.6,0.001]
[1772702164487,3.35686377,2127.0,2126.6,0.001]
[1772702164694,0.4035135,2126.9,2126.6,0.001]
[1772702164866,3.35674195,2127.3,2126.6,0.001]
[1772702165071,0.4035135,2127.2,2126.6,0.001]
[1772702165273,0.4035135,2127.1,2126.6,0.001]
[1772702165454,2.18149941,2127.2,2126.6,0.001]
[1772702165788,0.4035003,2127.1,2126.6,0.001]
[1772702166093,2.18149941,2127.2,2126.6,0.001]
[1772702166278,0.40349661,2127.1,2126.6,0.001]
[1772702166476,2.18149941,2127.2,2126.6,0.001]
[1772702166678,1.17536436,2127.0,2126.6,0.001]
[1772702166991,2.18149941,2126.9,2126.6,0.001]
[1772702168585,3.3569743,2126.8,2126.6,0.001]
[1772702168983,3.3569743,2126.8,2126.4,0.001]
[1772702168984,2.18149941,2126.7,2126.4,0.001]
[1772702169406,3.35689936,2127.0,2126.4,0.001]
[1772702169692,1.17517285,2127.4,2126.4,2.13126403]
[1772702169862,0.40323287,2127.3,2126.4,2.13126403]
[1772702170063,0.40323287,2127.2,2126.4,2.13126403]
[1772702170266,2.18149941,2127.4,2126.8,0.001]
[1772702170483,2.58473236,2127.3,2126.8,0.001]
[1772702170688,0.002,2127.1,2126.8,0.001]
[1772702171397,0.002,2127.1,2126.5,1.17664072]
[1772702171398,2.18349941,2127.1,2126.5,0.001]
[1772702171643,2.58473475,2127.0,2126.5,0.001]
[1772702171779,2.18149941,2126.8,2126.3,0.001]
[1772702172805,3.35702085,2126.8,2126.3,0.001]
[1772702174696,2.18149941,2126.7,2126.3,0.001]
[1772702174999,3.35708485,2126.6,2126.3,0.001]
[1772702176167,4.70147277,2127.0,2126.3,0.001]
[1772702176168,2.18149941,2126.9,2126.3,0.001]
[1772702176369,0.40279728,2126.8,2126.3,0.001]
[1772702176597,0.40279728,2126.7,2126.3,0.001]
[1772702176800,2.18149941,2126.7,2126.3,0.001]
[1772702176969,1.17558544,2126.6,2126.3,0.001]
[1772702177373,3.35708485,2126.6,2126.1,0.001]
[1772702178316,2.58411989,2126.5,2125.7,2.13126403]
[1772702178601,2.18149941,2126.5,2125.7,2.13126403]
[1772702178786,1.17558544,2126.6,2125.7,2.01591924]
[1772702178787,0.40262048,2126.4,2125.7,2.01591924]
[1772702178994,4.90060496,2126.6,2125.7,2.01591924]
[1772702178995,1.1756867,2126.5,2125.8,3.19094708]
[1772702179379,0.40245802,2126.4,2125.8,3.19094708]
[1772702179604,1.1756867,2126.5,2125.8,3.19094708]
[1772702180291,3.25149441,2126.9,2125.9,2.01491924]
[1772702180509,3.65382154,2126.8,2125.9,2.01491924]
[1772702180679,3.25149441,2126.8,2125.9,2.01491924]
[1772702180876,2.07601952,2126.8,2126.1,2.01491924]
[1772702181075,0.002,2127.1,2126.1,2.01491924]
[1772702181284,0.002,2127.1,2126.3,2.01491924]
[1772702181508,1.17733389,2127.1,2126.3,2.01491924]
[1772702181719,0.002,2127.1,2126.3,2.01491924]
[1772702181897,1.17731316,2127.1,2126.3,2.01491924]
[1772702182215,1.17732181,2127.1,2126.3,2.01491924]
[1772702182877,0.002,2127.1,2126.3,2.01491924]
[1772702183212,0.002,2127.1,2126.5,2.01491924]
[1772702184481,0.002,2126.8,2126.5,2.01491924]
[1772702184988,0.002,2126.8,2126.6,1.17558544]
[1772702185400,2.07801952,2127.5,2126.8,2.01491924]
[1772702185401,0.002,2127.5,2126.8,2.01491924]
[1772702185605,0.002,2127.5,2126.6,1.17558544]
[1772702185606,0.002,2128.0,2126.9,2.01491924]
[1772702185807,0.002,2128.0,2127.1,2.01491924]
[1772702186024,0.006,2128.0,2127.1,2.01491924]
[1772702186182,0.002,2128.2,2127.1,2.01491924]
[1772702186381,0.002,2128.2,2127.2,2.01491924]
[1772702187004,0.002,2128.2,2127.4,2.01491924]
[1772702189023,0.002,2128.2,2127.5,1.17508813]
[1772702189711,0.002,2128.2,2127.6,2.0882053]
[1772702190697,0.002,2128.2,2127.5,1.17508813]
[1772702190917,0.002,2128.2,2127.6,2.0882053]
[1772702191156,0.002,2128.2,2127.7,1.17497767]
[1772702192710,0.002,2128.2,2127.6,1.17498952]
[1772702196237,0.002,2128.0,2127.6,1.17498952]
[1772702197021,0.002,2128.0,2127.5,6.7885407]
[1772702197022,0.002,2128.0,2127.5,3.26325612]
[1772702197736,0.002,2128.0,2127.4,1.17510266]
[1772702197737,1.95526083,2128.0,2127.4,1.17510266]
[1772702198138,0.002,2128.0,2127.4,3.26330796]
[1772702198315,0.002,2128.0,2127.5,2.0882053]
[1772702198838,0.002,2128.0,2127.0,8.51057346]
[1772702198839,1.95526083,2128.0,2126.9,3.5422053]
[1772702199031,1.95526083,2128.0,2126.8,1.17543069]
[1772702199032,1.95326083,2127.8,2126.8,1.17543069]
[1772702199429,1.95326083,2127.8,2126.7,1.17550692]
[1772702199813,1.95326083,2127.8,2126.3,4.7179566]
[1772702200019,1.95326083,2127.6,2126.3,4.7179566]
[1772702200548,1.95326083,2127.4,2126.3,4.7179566]
[1772702201215,1.95326083,2127.4,2126.4,2.0882053]
[1772702201421,3.12828193,2127.7,2126.4,2.0882053]
[1772702201637,6.34325438,2128.0,2126.4,2.0882053]
[1772702201638,4.69956523,2127.9,2126.4,2.0882053]
[1772702201846,4.77211651,2128.0,2126.6,2.0882053]
[1772702202023,4.77211651,2128.0,2126.5,0.065536]
[1772702202024,0.002,2128.0,2126.8,2.0882053]
[1772702202363,0.002,2128.0,2127.0,2.0882053]
[1772702202515,0.002,2128.2,2127.2,2.0882053]
[1772702202955,0.002,2128.5,2127.4,2.0882053]
[1772702203127,0.002,2128.5,2127.6,2.0882053]
[1772702203454,0.002,2128.5,2127.8,2.0882053]
[1772702204940,0.002,2128.5,2128.0,2.0882053]
[1772702205131,0.002,2128.5,2128.2,2.0882053]
[1772702205756,0.002,2129.1,2128.2,2.0882053]
[1772702206456,1.95526083,2129.1,2127.9,1.17486724]
[1772702206959,1.95526083,2129.1,2127.8,4.69946896]
[1772702206960,1.95326083,2128.9,2127.8,4.69946896]
[1772702207172,1.95326083,2128.9,2127.4,1.7145249]
[1772702207173,1.95326083,2128.9,2127.5,1.17508813]
[1772702207822,1.95326083,2128.8,2127.5,1.17508813]
[1772702208029,1.95326083,2128.8,2127.8,0.001]
[1772702208931,2.01862785,2128.4,2127.5,0.001]
[1772702210150,1.17453605,2128.5,2127.5,1.95588447]
[1772702210351,2.01862785,2128.7,2127.5,1.95588447]
[1772702210554,0.002,2128.9,2127.5,1.95588447]
[1772702210721,0.002,2128.9,2127.6,3.81]
[1772702210927,0.002,2128.9,2128.0,1.95488447]
[1772702213054,0.002,2128.9,2128.1,1.17475682]
[1772702213251,0.002,2128.9,2128.1,3.12964129]
[1772702214041,0.002,2128.9,2128.1,1.17475682]
[1772702214246,2.02062785,2128.9,2128.1,1.17475682]
[1772702214755,0.002,2128.9,2128.1,1.17475682]
[1772702214952,0.002,2128.9,2128.0,4.6990273]
[1772702215166,0.002,2128.9,2128.0,6.65391177]
[1772702218149,0.002,2128.9,2128.0,4.6990273]
[1772702218150,2.02062785,2128.9,2128.0,4.6990273]
[1772702218352,2.02062785,2128.9,2127.9,4.69936189]
[1772702219142,1.17437053,2128.8,2127.9,4.69936189]
[1772702219345,3.19299838,2128.8,2127.9,4.69936189]
[1772702219639,2.01862785,2128.7,2127.9,4.69936189]
[1772702220230,2.01862785,2128.7,2127.8,4.69961831]
[1772702220662,2.02062785,2128.7,2127.8,1.17492245]
[1772702220868,2.02062785,2128.7,2127.7,1.17596587]
[1772702221035,2.02062785,2128.7,2127.7,1.17597625]
[1772702221228,2.02062785,2128.7,2127.7,1.95588447]
[1772702221229,0.002,2128.7,2127.7,1.95588447]
[1772702221431,0.002,2128.7,2127.9,1.95488447]
[1772702221833,0.002,2128.7,2128.0,3.81]
[1772702222045,3.19505475,2128.7,2127.9,1.452]
[1772702222465,3.19505475,2128.7,2127.7,3.811]
[1772702222650,2.01862785,2128.6,2127.7,3.811]
[1772702223161,1.1764269,2128.7,2127.9,1.17486724]
[1772702223162,0.002,2128.7,2127.9,1.17486724]
[1772702223543,2.02062785,2128.7,2127.9,1.17486724]
[1772702224465,2.02062785,2128.7,2127.8,1.17488976]
[1772702224669,2.02062785,2128.7,2127.7,0.001]
[1772702224962,2.02062785,2128.7,2127.7,3.13086046]
[1772702225152,2.02062785,2128.7,2127.9,1.17486724]
[1772702225537,0.002,2128.7,2128.0,1.95488447]
[1772702226455,0.002,2128.7,2127.9,1.17486724]
[1772702226456,1.17643108,2128.7,2127.9,1.17486724]
[1772702226655,2.01862785,2128.6,2127.9,1.17486724]
[1772702226965,0.002,2128.7,2127.9,3.12975171]
[1772702227171,0.002,2128.7,2128.0,1.95488447]
[1772702227546,0.002,2128.7,2128.1,1.17475682]
[1772702227943,2.02062785,2128.7,2128.1,1.17475682]
[1772702228269,2.02062785,2128.7,2128.0,4.6990273]
[1772702228270,2.02062785,2128.7,2127.8,2.62692245]
[1772702230164,0.002,2128.7,2127.8,4.58180692]
[1772702230673,1.17642861,2128.7,2127.8,4.58180692]
[1772702230982,2.4108617,2128.6,2127.7,1.17597432]
[1772702231185,2.01862785,2128.4,2127.7,1.17597432]
[1772702231547,2.01862785,2128.4,2127.7,0.001]
[1772702231753,2.01862785,2128.4,2127.7,1.17597081]
[1772702231978,3.19327428,2128.3,2127.7,0.001]
[1772702232482,3.19327428,2128.3,2127.9,0.001]
[1772702232955,2.01862785,2128.2,2127.7,0.001]
[1772702233286,2.01862785,2128.2,2127.5,0.001]
[1772702233457,1.17464643,2128.3,2127.5,0.001]
[1772702233458,2.01862785,2128.0,2127.5,0.001]
[1772702233659,4.7001467,2128.5,2127.5,1.95588447]
[1772702233660,3.1952018,2128.5,2127.5,1.95588447]
[1772702233874,1.56732583,2128.4,2127.6,1.1750329]
[1772702234072,1.17459771,2128.4,2127.6,1.1750329]
[1772702236770,3.19322556,2128.4,2127.6,1.1750329]
[1772702237896,3.19322556,2128.4,2127.6,4.9850329]
[1772702238290,3.19322153,2128.4,2127.6,1.1750329]
[1772702238907,3.19322153,2128.4,2127.5,1.17607456]
[1772702238908,2.29522122,2128.3,2127.5,1.17607456]
[1772702239069,1.90246484,2128.3,2127.5,1.17607456]
[1772702240094,4.70017188,2128.5,2127.5,1.17607456]
[1772702240095,1.90446484,2128.5,2127.5,1.17607456]
[1772702240264,3.46982114,2128.4,2127.5,1.17607456]
[1772702240461,3.07705608,2128.4,2127.5,1.17607456]
[1772702241593,3.07705608,2128.4,2127.5,3.09679885]
[1772702242291,0.002,2128.5,2127.6,1.92072429]
[1772702244463,0.002,2128.5,2127.8,1.92072429]
[1772702245392,0.002,2128.3,2127.8,1.92072429]
[1772702245573,0.002,2128.5,2127.8,1.92072429]
[1772702247099,0.002,2128.7,2127.9,3.09559153]
[1772702247299,0.002,2128.7,2128.0,1.453]
[1772702248509,0.002,2128.7,2128.1,2.01094478]
[1772702249171,0.002,2128.7,2128.2,1.17470162]
[1772702249718,0.002,2128.7,2128.0,4.6988065]
[1772702249871,0.002,2128.7,2127.5,1.17608483]
[1772702249872,2.41428598,2128.6,2127.5,1.17608483]
[1772702250074,0.002,2128.7,2127.5,1.17608483]
[1772702250075,2.03161101,2128.4,2127.5,1.17608483]
[1772702250599,2.03161101,2128.4,2127.6,1.453]
[1772702250903,2.03161101,2128.4,2127.5,2.62908483]
[1772702251272,3.20625744,2128.3,2127.5,2.62908483]
[1772702251802,2.03161101,2128.2,2127.5,2.62908483]
[1772702253507,1.17475682,2128.1,2127.5,1.17608483]
[1772702253701,3.20636783,2128.1,2127.5,2.63008376]
[1772702254603,2.03161101,2128.1,2127.5,2.63008376]
[1772702255109,1.17448087,2128.6,2127.6,2.01094478]
[1772702255605,3.20807396,2128.7,2127.7,3.18592245]
[1772702255976,2.03361101,2128.7,2127.7,3.18592245]
[1772702256286,0.002,2128.7,2127.8,2.01094478]
[1772702257402,0.002,2128.1,2127.8,2.01094478]
[1772702257703,0.002,2128.7,2128.0,2.01094478]
[1772702257704,0.002,2128.3,2128.0,2.01094478]
[1772702258007,0.002,2128.9,2128.2,2.01094478]
[1772702259089,0.002,2129.0,2128.2,2.01094478]
[1772702259704,0.002,2129.0,2128.4,2.01094478]
[1772702260082,0.00200001,2129.3,2128.4,2.01094478]
[1772702261312,4.74114874,2129.9,2128.4,2.01094478]
[1772702261510,1.1738247,2129.8,2128.4,2.01094478]
[1772702261700,1.1738247,2129.8,2128.6,2.01094478]
[1772702261899,1.1738247,2129.8,2128.8,2.01094478]
[1772702262305,5.91495241,2129.9,2128.8,2.01094478]
[1772702263808,4.74114874,2129.9,2129.0,2.01094478]
[1772702264008,2.03161101,2129.9,2129.0,2.01094478]
[1772702264383,2.03161101,2130.4,2129.0,2.01094478]
[1772702264991,2.03161101,2130.4,2128.9,1.17431537]
[1772702265207,2.03161101,2130.2,2129.1,1.454]
[1772702265785,1.17365381,2130.1,2129.2,1.17414991]
[1772702266014,2.03161101,2130.0,2129.2,1.454]
[1772702266423,2.03161101,2130.0,2129.1,1.17416545]
[1772702266424,2.03161101,2129.8,2128.9,1.454]
[1772702266717,2.03161101,2129.8,2129.0,1.454]
[1772702267044,2.03161101,2129.6,2128.4,1.454]
[1772702267189,2.03161101,2129.6,2127.8,2.01094478]
[1772702267190,2.03161101,2129.3,2127.9,2.62886724]
[1772702267390,2.03161101,2129.3,2128.0,2.01094478]
[1772702268002,3.20576092,2129.2,2128.1,1.17475682]
[1772702268189,2.03161101,2129.1,2128.1,3.1857016]
[1772702268389,2.03161101,2129.1,2128.2,1.454]
[1772702268891,2.03161101,2129.1,2128.0,1.454]
[1772702269292,2.03161101,2129.1,2128.1,1.454]
[1772702270735,2.03161101,2129.1,2127.7,1.455]
[1772702270736,2.03890914,2128.9,2127.7,1.455]
[1772702270887,2.03890914,2128.9,2127.7,0.001]
[1772702270888,2.03890914,2128.7,2127.7,0.001]
[1772702271088,1.98550529,2128.9,2127.7,0.001]
[1772702271089,2.03890914,2128.5,2127.7,0.001]
[1772702271293,2.03890914,2128.5,2127.5,1.17608413]
[1772702272127,2.03890914,2128.5,2127.6,2.17984206]
[1772702272702,1.17459124,2128.4,2127.7,1.17497767]
[1772702273330,2.03890914,2128.3,2127.7,1.453]
[1772702273700,2.03890914,2128.3,2127.6,1.17498896]
[1772702273701,2.03890914,2128.3,2127.6,1.453]
[1772702274215,1.17457602,2128.5,2127.6,3.63284206]
[1772702274790,1.17457602,2128.5,2127.7,1.17497767]
[1772702274791,3.21348516,2128.5,2127.7,1.17497767]
[1772702275030,2.03890914,2128.4,2127.5,1.17604684]
[1772702275185,2.03890914,2128.4,2127.5,2.6290854]
[1772702275994,2.03890914,2128.4,2127.5,1.454]
[1772702276337,2.03890914,2128.4,2127.5,0.001]
[1772702276497,2.03890914,2128.4,2127.3,1.17618846]
[1772702276839,2.03890914,2128.4,2127.3,2.18084206]
[1772702276840,1.17464643,2128.3,2127.3,2.18084206]
[1772702278822,3.21353805,2128.4,2127.4,1.17514336]
[1772702279331,2.03890914,2128.4,2127.5,2.17984206]
[1772702279633,2.03890914,2128.4,2127.6,1.453]
[1772702279919,1.17456351,2128.5,2127.6,3.63284206]
[1772702280122,2.03890914,2128.7,2127.6,1.453]
[1772702280344,2.03890914,2129.0,2127.7,2.17984206]
[1772702280635,2.03890914,2128.8,2127.4,1.17514336]
[1772702280831,2.03890914,2128.6,2127.5,1.452]
[1772702281039,2.03890914,2128.6,2127.4,1.17514336]
[1772702281216,2.03890914,2128.6,2127.3,2.62815488]
[1772702281622,2.03890914,2128.6,2127.5,0.001]
[1772702282907,2.03890914,2128.4,2127.5,0.001]
[1772702283934,2.03890914,2128.4,2127.3,0.001]
[1772702284434,2.03890914,2127.6,2127.0,0.001]
[1772702284636,2.03890914,2127.4,2126.1,1.1758619]
[1772702284810,1.1753091,2127.1,2126.1,1.1758619]
[1772702285009,2.03890914,2127.0,2126.1,1.1758619]
[1772702285329,2.03890914,2127.0,2126.1,3.35570396]
[1772702285529,1.1753091,2127.1,2126.2,2.17984206]
[1772702285731,1.1753091,2127.1,2126.2,1.449]
[1772702286031,2.03890914,2127.0,2126.1,1.1758619]
[1772702286231,2.03890914,2127.0,2126.0,1.17691428]
[1772702287026,3.21432876,2126.9,2126.0,0.001]
[1772702287229,2.03890914,2126.8,2126.0,0.001]
[1772702288131,1.17541962,2126.9,2126.0,0.001]
[1772702288331,1.02966222,2126.8,2126.3,2.17984206]
[1772702288507,0.49708485,2127.6,2126.3,2.17984206]
[1772702289316,1.17508813,2127.5,2126.5,2.17984206]
[1772702289514,1.67217298,2127.5,2126.6,1.448]
[1772702289751,2.03890914,2127.4,2126.4,1.17569601]
[1772702290031,2.03890914,2127.4,2126.3,1.17570795]
[1772702291422,3.2140714,2127.4,2126.4,2.17984206]
[1772702292107,2.03890914,2127.3,2126.3,1.17570795]
[1772702292310,2.03890914,2127.3,2126.3,2.62370795]
[1772702292827,2.03890914,2127.3,2126.3,1.17570795]
[1772702293415,3.21416299,2127.2,2126.3,1.17570795]
[1772702294737,0.002,2127.1,2126.3,3.35655001]
[1772702295525,0.002,2127.1,2126.4,2.17984206]
[1772702296041,0.002,2127.1,2126.3,1.17670795]
[1772702296042,2.04090914,2127.1,2126.3,2.62470795]
[1772702296211,2.04090914,2127.1,2126.3,1.17670795]
[1772702296408,2.04090914,2127.1,2126.0,0.001]
[1772702296613,2.04090914,2127.1,2126.0,1.17691418]
[1772702296614,1.81023632,2126.9,2126.0,1.17691418]
[1772702297039,1.81023632,2126.9,2126.0,0.001]
[1772702297225,1.81023632,2126.9,2126.0,1.17691201]
[1772702297442,1.17547489,2126.8,2126.0,0.001]
[1772702297621,3.04535264,2126.8,2126.0,0.001]
[1772702297845,1.86987775,2126.7,2126.0,0.001]
[1772702298361,1.17547489,2126.8,2126.0,0.001]
[1772702299260,1.86366934,2126.7,2126.0,0.001]
[1772702299416,1.86366934,2126.7,2125.8,0.001]
[1772702299417,1.86366934,2126.4,2125.8,0.001]
[1772702299746,1.86366934,2126.4,2125.5,0.001]
[1772702299747,1.86366934,2126.2,2125.5,0.001]
[1772702299956,1.98550529,2126.4,2125.2,0.001]
[1772702299957,1.86082339,2126.0,2125.2,0.001]
[1772702300119,0.83853097,2125.9,2125.2,0.001]
[1772702300315,2.69935436,2125.9,2125.2,0.001]
[1772702300513,0.83853097,2125.8,2125.2,0.001]
[1772702301141,2.69657468,2125.8,2125.2,0.001]
[1772702301313,2.69657468,2125.8,2124.5,4.70697464]
[1772702301314,1.85804371,2125.3,2123.9,1.17702448]
[1772702301514,1.85804371,2125.3,2124.0,2.04299747]
[1772702301515,2.55913717,2125.2,2124.0,2.04299747]
[1772702301744,1.2583819,2125.1,2124.0,2.04299747]
[1772702303530,1.17647058,2125.0,2124.1,1.17696906]
[1772702303842,1.0349373,2124.9,2124.1,3.21996653]
[1772702304043,1.0349373,2124.9,2124.2,2.04299747]
[1772702305518,1.84963645,2125.6,2124.2,2.04299747]
[1772702305519,0.62096244,2125.0,2124.6,2.04299747]
[1772702305718,0.33118015,2125.8,2124.7,2.04299747]
[1772702306130,0.33118015,2125.8,2124.9,2.04299747]
[1772702306745,0.33118015,2125.8,2124.9,3.48899747]
[1772702307048,0.33118015,2125.8,2124.5,1.17674746]
[1772702307049,2.28104987,2125.8,2124.5,3.21974493]
[1772702307350,1.94986972,2125.6,2124.5,3.21974493]
[1772702307649,0.32523097,2125.5,2124.6,2.02172793]
[1772702308835,1.17803128,2125.8,2124.7,2.02172793]
[1772702309238,0.002,2125.8,2124.7,2.02172793]
[1772702309442,0.002,2125.8,2124.9,2.02172793]
[1772702309646,0.002,2125.8,2125.0,1.17647058]
[1772702310043,0.002,2125.8,2124.9,1.17648644]
[1772702310534,0.002,2125.8,2125.0,2.02172793]
[1772702311246,0.002,2125.8,2124.9,1.17648644]
[1772702311661,0.002,2125.8,2124.7,4.70610381]
[1772702311873,0.002,2125.8,2124.7,6.15110381]
[1772702312162,2.02357838,2125.8,2124.7,4.70610381]
[1772702312734,2.02357838,2125.8,2124.4,1.17680286]
[1772702313666,2.02357838,2125.8,2124.4,2.62180286]
[1772702313839,3.19766155,2125.7,2124.4,4.64353079]
[1772702314034,3.19766155,2125.7,2124.5,2.02172793]
[1772702314240,1.17806054,2125.8,2124.5,2.02172793]
[1772702314545,1.17804601,2125.8,2124.5,2.02172793]
[1772702314853,3.19962439,2125.8,2124.5,2.02172793]
[1772702315058,3.19962439,2125.8,2124.5,3.46572793]
[1772702315736,3.19771688,2125.6,2124.6,1.17669208]
[1772702316037,1.1761385,2125.6,2124.6,3.19842001]
[1772702316233,1.1761385,2125.6,2124.7,2.02172793]
[1772702316434,1.1761385,2125.6,2124.3,7.36871255]
[1772702316435,2.02157838,2125.5,2124.3,4.68303776]
[1772702316633,2.02157838,2125.5,2124.4,4.70716214]
[1772702317049,2.02157838,2125.5,2124.4,6.72889007]
[1772702317456,2.02157838,2125.5,2124.4,8.17289007]
[1772702318161,1.17624917,2125.4,2124.5,2.02172793]
[1772702318482,2.02357838,2125.8,2124.5,2.02172793]
[1772702318483,1.17806008,2125.8,2124.5,2.02172793]
[1772702318661,0.002,2125.8,2124.5,2.02172793]
[1772702318830,0.002,2126.0,2124.4,6.15116214]
[1772702318831,0.002,2126.0,2124.9,2.02172793]
[1772702319026,0.002,2126.0,2124.8,0.065536]
[1772702319027,0.002,2126.0,2125.1,2.02172793]
[1772702319766,1.17793055,2126.0,2125.1,2.02172793]
[1772702319978,0.002,2125.6,2125.2,1.444]
[1772702320134,0.002,2125.6,2125.3,1.17630452]
[1772702320330,0.002,2125.6,2125.4,2.02172793]
[1772702320535,0.002,2125.8,2125.4,2.02172793]
[1772702321151,0.002,2126.0,2125.4,2.02172793]
[1772702321946,0.002,2126.0,2125.3,1.17630452]
[1772702322163,0.002,2126.0,2125.3,2.62030452]
[1772702323263,2.02357838,2126.0,2125.1,1.17638783]
[1772702323459,2.02357838,2126.0,2125.0,1.17642959]
[1772702324044,2.02357838,2126.0,2124.8,4.70626071]
[1772702324246,1.17597252,2125.9,2124.8,4.70626071]
[1772702324552,2.02157838,2125.8,2124.8,1.17658132]
[1772702324779,1.17597252,2125.9,2124.7,1.17763317]
[1772702324780,2.02157838,2125.6,2124.7,1.17763317]
[1772702325777,2.02157838,2125.8,2124.7,1.17763317]
[1772702326078,3.18237115,2125.7,2124.7,1.17763317]
[1772702326284,1.17619383,2125.5,2124.7,1.17763317]
[1772702327397,3.19777221,2125.5,2124.7,1.17763317]
[1772702327700,0.38162661,2125.4,2124.7,1.17763317]
[1772702327852,0.12363324,2125.4,2124.7,1.17763317]
[1772702328294,1.17630452,2125.3,2124.7,0.001]
[1772702329302,1.49525915,2125.3,2124.7,0.001]
[1772702331755,1.49525915,2125.3,2124.7,2.06821289]
[1772702331756,0.31895463,2125.3,2124.7,2.06821289]
[1772702332666,0.31895463,2125.3,2124.9,0.001]
[1772702334185,1.49526229,2125.3,2124.9,0.001]
[1772702337399,0.94099628,2125.2,2124.7,0.001]
[1772702337567,0.55866773,2125.2,2124.7,0.001]
[1772702337773,0.55866773,2125.2,2124.5,0.001]
[1772702337774,0.38232855,2125.1,2124.5,0.001]
[1772702337974,6.21021564,2125.0,2124.5,0.001]
[1772702338173,0.38232855,2124.9,2124.5,0.001]
[1772702338378,0.88454884,2124.9,2124.5,0.001]
[1772702339186,1.17658132,2124.8,2124.5,0.001]
[1772702340497,0.88454884,2124.9,2124.5,0.001]
[1772702341175,2.06107717,2124.9,2124.5,0.001]
[1772702341499,2.06107808,2124.9,2124.5,0.001]
[1772702341992,0.88454884,2124.9,2124.5,2.06821289]
[1772702343263,0.88454884,2124.9,2124.5,3.2449061]
[1772702343677,1.17619383,2125.5,2124.6,2.06721289]
[1772702343883,0.55712947,2125.2,2124.6,2.06721289]
[1772702345069,1.17814107,2125.6,2124.6,2.06721289]
[1772702345269,0.38199057,2125.5,2124.7,3.24384959]
[1772702345570,1.30006423,2125.6,2124.7,3.24384959]
[1772702345771,0.38199022,2125.5,2124.7,3.24484959]
[1772702346067,0.12392316,2125.6,2124.8,2.06721289]
[1772702346296,0.12392316,2125.6,2125.0,2.06721289]
[1772702347303,0.12392316,2125.6,2125.1,3.24362811]
[1772702348007,0.12392316,2125.6,2125.2,2.06721289]
[1772702349001,0.12392316,2125.6,2125.1,1.442]
[1772702349002,1.30008111,2125.6,2125.1,1.442]
[1772702349377,1.30008111,2125.6,2125.0,1.17644731]
[1772702351381,0.12392316,2125.6,2125.0,2.06721289]
[1772702353501,1.30010313,2125.6,2125.0,1.17644756]
[1772702353702,1.30010313,2125.6,2125.0,2.61844756]
[1772702354411,1.30007295,2125.6,2125.0,1.17644756]
[1772702354605,1.30007295,2125.6,2125.0,4.68666045]
[1772702354606,0.12392316,2125.6,2125.0,4.68666045]
[1772702354921,1.30006488,2125.6,2125.0,4.68666045]